bitfinex-derivatives/quotes_BTCF0:USTF0_20250119
["timestamp","ask_amount","ask_price","bid_price","bid_amount"]
[1737309697770,0.12987415,105230.0,105220.0,0.05054923]
[1737309697969,0.12987415,105230.0,105220.0,0.08475238]
[1737309697970,0.095671,105230.0,105220.0,0.08475238]
[1737309698269,0.12987415,105230.0,105220.0,0.05054923]
[1737309698973,0.12987415,105230.0,105220.0,0.047574]
[1737309699174,0.38627261,105230.0,105220.0,0.047574]
[1737309700169,0.38627261,105230.0,105210.0,0.72176292]
[1737309700363,0.38627261,105230.0,105210.0,0.72949852]
[1737309700772,0.4767803,105220.0,105210.0,0.00297523]
[1737309701071,0.047578,105210.0,105200.0,0.5097941]
[1737309701275,0.12648115,105210.0,105200.0,0.5097941]
[1737309701478,0.12648115,105210.0,105200.0,0.51276981]
[1737309702071,0.26891248,105210.0,105200.0,0.00297571]
[1737309702870,0.26891248,105210.0,105200.0,0.36377571]
[1737309704182,0.23470933,105210.0,105200.0,0.36377571]
[1737309704483,0.26891248,105210.0,105200.0,0.36377571]
[1737309705181,0.26891248,105210.0,105200.0,0.39797886]
[1737309705368,0.26891248,105210.0,105200.0,0.39797883]
[1737309705569,0.26891248,105210.0,105200.0,0.36377568]
[1737309705973,0.26891248,105210.0,105200.0,0.39500315]
[1737309707574,0.12648115,105210.0,105200.0,0.39500315]
[1737309708984,0.34376078,105210.0,105200.0,0.03420315]
[1737309709186,0.29618278,105210.0,105190.0,0.49680625]
[1737309709389,0.29618278,105210.0,105190.0,0.49978195]
[1737309709390,0.047583,105200.0,105190.0,0.49978195]
[1737309710086,0.19006768,105200.0,105190.0,0.49978195]
[1737309711182,0.19006768,105200.0,105190.0,0.49978191]
[1737309713093,0.19006768,105200.0,105190.0,0.50454298]
[1737309713587,0.19006768,105200.0,105190.0,0.54934298]
[1737309716387,0.19006768,105200.0,105190.0,0.54458191]
[1737309716590,0.047583,105200.0,105190.0,0.77084506]
[1737309717085,0.047583,105200.0,105190.0,0.77560609]
[1737309717286,0.047583,105200.0,105190.0,0.77560607]
[1737309717679,0.047583,105200.0,105190.0,0.77084504]
[1737309717879,0.047583,105200.0,105190.0,0.77560607]
[1737309718079,0.34872438,105210.0,105200.0,0.047583]
[1737309718290,0.34872438,105210.0,105200.0,0.47976494]
[1737309718591,0.34872438,105210.0,105200.0,0.44556179]
[1737309718784,0.30402438,105210.0,105200.0,0.4845255]
[1737309719085,0.1615397,105210.0,105200.0,0.4845255]
[1737309720487,0.04758,105210.0,105200.0,0.71078865]
[1737309720891,0.04758,105210.0,105200.0,0.6765855]
[1737309721087,0.04758,105210.0,105200.0,0.70305245]
[1737309721288,0.04758,105210.0,105200.0,0.6688493]
[1737309723181,0.19006468,105210.0,105200.0,0.44258615]
[1737309723989,0.19006468,105210.0,105200.0,0.44556142]
[1737309724191,0.19006468,105210.0,105200.0,0.47976457]
[1737309724680,0.19006468,105210.0,105200.0,0.4767893]
[1737309725888,0.19006468,105210.0,105200.0,0.47976459]
[1737309726083,0.19006468,105210.0,105200.0,0.4767893]
[1737309726285,0.19006468,105210.0,105200.0,0.47976454]
[1737309727883,0.19006468,105210.0,105200.0,0.41135824]
[1737309728085,0.19006468,105210.0,105200.0,0.45032177]
[1737309728580,0.19006468,105210.0,105200.0,0.48452492]
[1737309728983,0.19006468,105210.0,105200.0,0.47976454]
[1737309729786,0.14248468,105210.0,105200.0,0.47976454]
[1737309730994,0.20669618,105220.0,105210.0,0.047578]
[1737309731193,0.16159618,105220.0,105210.0,0.44555639]
[1737309731393,0.16159618,105220.0,105210.0,0.48925639]
[1737309732198,0.16159618,105220.0,105210.0,0.7125443]
[1737309732687,0.16159618,105220.0,105210.0,0.71551957]
[1737309733491,0.19579933,105220.0,105210.0,0.71551957]
[1737309733693,0.19579933,105220.0,105210.0,0.48925642]
[1737309733895,0.16159618,105220.0,105210.0,0.48925642]
[1737309735500,0.16159618,105220.0,105210.0,0.49804092]
[1737309736301,0.16159618,105220.0,105210.0,0.72430407]
[1737309737201,0.11402118,105220.0,105210.0,0.7213288]
[1737309737401,0.11402118,105220.0,105210.0,0.49804086]
[1737309737602,0.17099742,105220.0,105210.0,0.49804086]
[1737309737993,0.20520057,105220.0,105210.0,0.49804086]
[1737309738193,0.17099742,105220.0,105210.0,0.49506565]
[1737309739005,0.17099742,105220.0,105210.0,0.49804088]
[1737309739704,0.21727194,105220.0,105210.0,0.49804088]
[1737309741394,0.21727194,105220.0,105210.0,0.42013773]
[1737309741395,0.29904909,105220.0,105210.0,0.42013773]
[1737309742398,0.26484594,105220.0,105210.0,0.45434088]
[1737309742594,0.21857142,105220.0,105210.0,0.45434088]
[1737309743199,0.21857142,105220.0,105210.0,0.45136565]
[1737309744489,0.25277457,105220.0,105210.0,0.45136565]
[1737309744893,0.25277457,105220.0,105210.0,0.4171625]
[1737309745398,0.33846912,105220.0,105210.0,0.64342565]
[1737309746805,0.33846912,105220.0,105210.0,0.6776288]
[1737309746806,0.19018065,105220.0,105210.0,0.6776288]
[1737309747101,0.14260665,105220.0,105210.0,0.6776288]
[1737309747293,0.14260665,105220.0,105210.0,0.72510394]
[1737309747498,0.14260665,105220.0,105210.0,0.76970394]
[1737309748207,0.48007722,105230.0,105220.0,0.047574]
[1737309748503,0.48007722,105230.0,105220.0,0.08177715]
[1737309749007,0.48007722,105230.0,105220.0,0.047574]
[1737309749408,0.33747057,105230.0,105220.0,0.047574]
[1737309751318,0.33747057,105230.0,105220.0,0.05054916]
[1737309751808,0.33747057,105230.0,105220.0,0.047574]
[1737309752204,0.33747057,105230.0,105220.0,0.05054917]
[1737309753110,0.16647315,105230.0,105220.0,0.05054917]
[1737309753703,0.52727315,105230.0,105220.0,0.047574]
[1737309753904,0.16647315,105230.0,105220.0,0.047574]
[1737309754302,0.21274747,105230.0,105220.0,0.047574]
[1737309755512,0.36582044,105230.0,105220.0,0.047574]
[1737309755697,0.36582044,105230.0,105220.0,0.05054921]
[1737309756513,0.36582044,105230.0,105220.0,0.08475236]
[1737309756714,0.16647315,105230.0,105220.0,0.08475236]
[1737309757411,0.16647315,105230.0,105220.0,0.05054921]
[1737309757617,0.16647315,105230.0,105220.0,0.08475236]
[1737309758115,0.16647315,105230.0,105220.0,0.05054921]
[1737309758316,0.16647315,105230.0,105220.0,0.08177715]
[1737309758815,0.13227,105230.0,105220.0,0.08177715]
[1737309759113,0.13227,105230.0,105220.0,0.0847523]
[1737309759308,0.16647315,105230.0,105220.0,0.0847523]
[1737309759613,0.047574,105220.0,105210.0,0.0563615]
[1737309759813,0.08177715,105220.0,105210.0,0.0563615]
[1737309760003,0.047574,105220.0,105210.0,0.09056465]
[1737309760414,0.047574,105220.0,105210.0,0.45136465]
[1737309760905,0.19028533,105220.0,105210.0,0.7218278]
[1737309761408,0.19028533,105220.0,105210.0,0.3610278]
[1737309761808,0.19028533,105220.0,105210.0,0.7218278]
[1737309762610,0.19028533,105220.0,105210.0,0.769603]
[1737309763316,0.19028533,105220.0,105210.0,0.76960302]
[1737309764120,0.19028533,105220.0,105210.0,0.76960304]
[1737309766313,0.19028533,105220.0,105210.0,0.7743634]
[1737309769422,0.19028533,105220.0,105210.0,0.76960304]
[1737309769915,0.19028533,105220.0,105210.0,0.76960301]
[1737309770313,0.19028533,105220.0,105210.0,0.76960304]
[1737309770514,0.19028533,105220.0,105210.0,0.77436341]
[1737309771714,0.19028533,105220.0,105210.0,0.76960304]
[1737309771909,0.19028533,105220.0,105210.0,0.77436338]
[1737309772825,0.19028533,105220.0,105210.0,0.76960302]
[1737309773523,0.19028533,105220.0,105210.0,0.7666278]
[1737309774425,0.3044645,105220.0,105210.0,1.05015875]
[1737309776118,0.047574,105220.0,105210.0,0.7666278]
[1737309776312,0.047574,105220.0,105210.0,0.54036465]
[1737309777127,0.047574,105220.0,105210.0,0.54333987]
[1737309779133,0.21885266,105220.0,105210.0,0.54333987]
[1737309780135,0.21885266,105220.0,105210.0,0.71299271]
[1737309781430,0.21885266,105220.0,105210.0,0.71775309]
[1737309782724,0.21885266,105220.0,105210.0,0.71869309]
[1737309782931,0.047574,105220.0,105210.0,0.54904025]
[1737309783524,0.047574,105220.0,105210.0,0.0086756]
[1737309783525,0.1159803,105220.0,105210.0,0.0086756]
[1737309783732,0.5201803,105220.0,105210.0,0.00391522]
[1737309784334,0.5201803,105220.0,105210.0,0.00094]
[1737309784532,0.047578,105210.0,105200.0,0.28353095]
[1737309784831,0.12468115,105210.0,105200.0,0.28650657]
[1737309785530,0.12468115,105210.0,105200.0,0.28650666]
[1737309785735,0.43870333,105210.0,105200.0,0.17261344]
[1737309786529,0.43870333,105210.0,105200.0,0.22019644]
[1737309786833,0.43870333,105210.0,105200.0,0.25439959]
[1737309786834,0.26742467,105210.0,105200.0,0.25439959]
[1737309787035,0.26742467,105210.0,105200.0,0.22019644]
[1737309787745,0.31062467,105210.0,105200.0,0.22019644]
[1737309787946,0.31062467,105210.0,105200.0,0.21722073]
[1737309788738,0.31062467,105210.0,105200.0,0.58099638]
[1737309788938,0.31062467,105210.0,105200.0,0.22019635]
[1737309790540,0.31062467,105210.0,105200.0,0.17261335]
[1737309790850,0.31062467,105210.0,105200.0,0.17261343]
[1737309791043,0.31062467,105210.0,105200.0,0.16963773]
[1737309791239,0.28190195,105210.0,105200.0,0.16963773]
[1737309791441,0.2476988,105210.0,105200.0,0.20681655]
[1737309791647,0.28190195,105210.0,105200.0,0.20681655]
[1737309791843,0.28190195,105210.0,105200.0,0.1726134]
[1737309792644,0.28190195,105210.0,105200.0,0.39879705]
[1737309792845,0.28190195,105210.0,105200.0,0.39879702]
[1737309793945,0.28190195,105210.0,105200.0,0.17261337]
[1737309795550,0.28190195,105210.0,105200.0,0.16963773]
[1737309797050,0.047583,105200.0,105190.0,0.84722865]
[1737309797351,0.047583,105200.0,105190.0,0.85020435]
[1737309797857,0.08178615,105200.0,105190.0,0.8160012]
[1737309798241,0.22452967,105200.0,105190.0,0.45438297]
[1737309799253,0.19032652,105200.0,105190.0,0.45438297]
[1737309800054,0.22452967,105200.0,105190.0,0.45438297]
[1737309800658,0.22452967,105200.0,105190.0,0.42017983]
[1737309801460,0.22452967,105200.0,105190.0,0.41720412]
[1737309802963,0.19032652,105200.0,105190.0,0.45140727]
[1737309803354,0.19032652,105200.0,105190.0,0.45914416]
[1737309803660,0.36160518,105200.0,105190.0,0.45914416]
[1737309804754,0.19032652,105200.0,105190.0,0.45914416]
[1737309805251,0.14274352,105200.0,105190.0,0.45914381]
[1737309805456,0.14274352,105200.0,105190.0,0.50454381]
[1737309805656,0.14274352,105200.0,105190.0,0.54564381]
[1737309806050,0.24768493,105210.0,105200.0,0.047583]
[1737309806253,0.28188808,105210.0,105200.0,0.41611936]
[1737309806453,0.28188808,105210.0,105200.0,0.41611925]
[1737309806655,0.28188808,105210.0,105200.0,0.45655848]
[1737309807054,0.28188808,105210.0,105200.0,0.46131932]
[1737309807255,0.28188808,105210.0,105200.0,0.68750297]
[1737309807465,0.28188808,105210.0,105200.0,0.68274213]
[1737309808361,0.28188808,105210.0,105200.0,0.88636875]
[1737309808661,0.28188808,105210.0,105200.0,0.8521656]
[1737309808965,0.28188808,105210.0,105200.0,0.85216561]
[1737309809356,0.28188808,105210.0,105200.0,0.85692642]
[1737309809863,0.28188808,105210.0,105200.0,0.49136561]
[1737309810064,0.28188808,105210.0,105200.0,0.85216561]
[1737309811055,0.28188808,105210.0,105200.0,0.49136561]
[1737309811257,0.28188808,105210.0,105200.0,0.48839012]
[1737309812154,0.4246316,105210.0,105200.0,0.26220647]
[1737309813166,0.4246316,105210.0,105200.0,0.26518211]
[1737309813664,0.16788315,105210.0,105200.0,0.09575864]
[1737309814056,0.16788315,105210.0,105200.0,0.45655864]
[1737309814262,0.16788315,105210.0,105200.0,0.09575864]
[1737309814663,0.38544827,105210.0,105200.0,0.09575864]
[1737309815759,0.33916754,105210.0,105200.0,0.09575864]
[1737309816966,0.33916754,105210.0,105200.0,0.09575859]
[1737309819669,0.33916754,105210.0,105200.0,0.45655859]
[1737309819867,0.33916754,105210.0,105200.0,0.46131951]
[1737309820170,0.16788315,105210.0,105200.0,0.46131951]
[1737309821382,0.31062074,105210.0,105200.0,0.68750316]
[1737309822362,0.31062074,105210.0,105200.0,0.32194224]
[1737309822570,0.31062074,105210.0,105200.0,0.68274224]
[1737309822769,0.31062074,105210.0,105200.0,0.6827422]
[1737309823273,0.31062074,105210.0,105200.0,0.68274213]
[1737309823573,0.31062074,105210.0,105200.0,0.68750291]
[1737309824069,0.31062074,105210.0,105200.0,0.68274213]
[1737309824468,0.31062074,105210.0,105200.0,0.8524064]
[1737309824974,0.31062074,105210.0,105200.0,0.85240641]
[1737309825370,0.31062074,105210.0,105200.0,0.85716717]
[1737309825969,0.31062074,105210.0,105200.0,0.6875029]
[1737309826371,0.31062074,105210.0,105200.0,0.68274214]
[1737309826670,0.31062074,105210.0,105200.0,0.67976665]
[1737309826977,0.31062074,105210.0,105200.0,0.68750287]
[1737309827178,0.26772074,105210.0,105200.0,0.68750287]
[1737309828480,0.29626826,105210.0,105200.0,0.63097572]
[1737309828777,0.26206511,105210.0,105200.0,0.66517887]
[1737309829278,0.17128511,105210.0,105200.0,0.66517887]
[1737309829571,0.17128511,105210.0,105200.0,0.67112953]
[1737309829774,0.21756416,105210.0,105200.0,0.67112953]
[1737309831869,0.21756416,105210.0,105200.0,0.66517887]
[1737309832072,0.21756416,105210.0,105200.0,0.67112954]
[1737309832274,0.21756416,105210.0,105200.0,0.66517887]
[1737309833379,0.26514216,105210.0,105200.0,0.66041814]
[1737309834379,0.21886311,105210.0,105200.0,0.66041814]
[1737309835376,0.25306626,105210.0,105200.0,0.66041814]
[1737309835880,0.19593168,105210.0,105200.0,1.13795608]
[1737309836085,0.19593168,105210.0,105200.0,1.10851346]
[1737309836274,0.19593168,105210.0,105200.0,1.10375293]
[1737309836984,0.19593168,105210.0,105200.0,0.74008944]
[1737309839180,0.19593168,105210.0,105200.0,0.74008924]
[1737309839580,0.16172853,105210.0,105200.0,1.13712721]
[1737309839981,0.16172853,105210.0,105200.0,1.14188769]
[1737309840378,0.16172853,105210.0,105200.0,1.13712721]
[1737309840574,0.16172853,105210.0,105200.0,1.13712716]
[1737309840778,0.11415053,105210.0,105200.0,0.52496454]
[1737309840980,0.11415053,105210.0,105200.0,0.54162575]
[1737309841488,0.11415053,105210.0,105200.0,0.54757582]
[1737309842088,0.11415053,105220.0,105210.0,0.047578]
[1737309842383,0.11415053,105220.0,105210.0,0.53331668]
[1737309843283,0.11415053,105220.0,105210.0,1.17628132]
[1737309844985,0.24102468,105230.0,105210.0,1.1881809]
[1737309845191,0.24102468,105230.0,105220.0,0.408374]
[1737309845391,0.24102468,105230.0,105220.0,0.41134924]
[1737309846099,0.24102468,105230.0,105220.0,0.58070298]
[1737309848095,0.24102468,105230.0,105220.0,0.58070275]
[1737309848502,0.24102468,105230.0,105220.0,0.57772774]
[1737309848707,0.24102468,105230.0,105220.0,0.61490581]
[1737309849001,0.24102468,105230.0,105220.0,0.61490578]
[1737309849203,0.24102468,105230.0,105220.0,0.61193089]
[1737309850190,0.26956231,105230.0,105220.0,0.44257715]
[1737309850999,0.23535916,105230.0,105220.0,0.44257715]
[1737309852105,0.23535916,105230.0,105220.0,0.450374]
[1737309852293,0.23535916,105230.0,105220.0,0.48457715]
[1737309852697,0.26956231,105230.0,105220.0,0.49356148]
[1737309853596,0.23535916,105230.0,105220.0,0.49356148]
[1737309855605,0.26956231,105230.0,105220.0,0.49356148]
[1737309856507,0.26956231,105230.0,105220.0,0.49653632]
[1737309857501,0.26956231,105230.0,105220.0,0.49356148]
[1737309858008,0.24083379,105230.0,105220.0,0.66589022]
[1737309859402,0.38352195,105230.0,105220.0,0.66589022]
[1737309860904,0.26956231,105230.0,105220.0,0.66589022]
[1737309861305,0.26956231,105230.0,105220.0,0.66291522]
[1737309861497,0.26956231,105230.0,105220.0,0.66589018]
[1737309861702,0.26956231,105230.0,105220.0,0.66589008]
[1737309863607,0.26956231,105230.0,105220.0,0.66291522]
[1737309863808,0.23535916,105230.0,105220.0,0.66291522]
[1737309866112,0.26395611,105230.0,105220.0,0.49356148]
[1737309867105,0.29815926,105230.0,105220.0,0.49356148]
[1737309867312,0.29815926,105230.0,105220.0,0.4965363]
[1737309867514,0.29815926,105230.0,105220.0,0.49356148]
[1737309867812,0.13893988,105230.0,105220.0,0.49356148]
[1737309868613,0.17314303,105230.0,105220.0,0.49356148]
[1737309870408,0.17314303,105230.0,105220.0,0.4965364]
[1737309870601,0.12687415,105230.0,105220.0,0.50129626]
[1737309871412,0.12687415,105230.0,105220.0,0.46709311]
[1737309871613,0.12687415,105230.0,105220.0,0.50129626]
[1737309871814,0.12687415,105230.0,105220.0,0.50129631]
[1737309872202,0.12687415,105230.0,105220.0,0.42509316]
[1737309872403,0.047574,105220.0,105210.0,0.16935374]
[1737309872606,0.047578,105210.0,105200.0,0.22580499]
[1737309872811,0.047583,105200.0,105190.0,0.62229532]
[1737309873011,0.1603893,105200.0,105190.0,0.62229532]
[1737309873210,0.047592,105180.0,105170.0,0.40546605]
[1737309873509,0.1159983,105180.0,105170.0,0.4621142]
[1737309873718,0.1615983,105180.0,105170.0,0.4621142]
[1737309873905,0.1615983,105180.0,105170.0,0.42296361]
[1737309874306,0.5223983,105180.0,105170.0,0.42296361]
[1737309874715,0.50900945,105180.0,105160.0,0.50983333]
[1737309874922,0.047602,105160.0,105140.0,0.408408]
[1737309875211,0.05219977,105150.0,105140.0,0.41738578]
[1737309875410,0.09779977,105150.0,105140.0,0.41738578]
[1737309875607,0.0903,105150.0,105140.0,0.46958555]
[1737309875808,0.54064696,105180.0,105160.0,0.047599]
[1737309876005,0.66994283,105180.0,105160.0,0.45384916]
[1737309876209,0.66994283,105180.0,105160.0,0.40164939]
[1737309876210,0.7221426,105180.0,105160.0,0.40164939]
[1737309876411,0.55089277,105180.0,105160.0,0.40164939]
[1737309876623,0.55089277,105180.0,105160.0,0.45384916]
[1737309876915,0.047596,105170.0,105160.0,0.40164939]
[1737309877714,0.18955764,105170.0,105160.0,0.40164939]
[1737309877909,0.18955764,105170.0,105160.0,0.25876491]
[1737309878109,0.18955764,105170.0,105150.0,0.45749977]
[1737309878510,0.18955764,105170.0,105160.0,0.047599]
[1737309879016,0.18955764,105170.0,105150.0,0.45749977]
[1737309879211,0.60255741,105170.0,105150.0,0.50510477]
[1737309879411,0.60255741,105170.0,105150.0,0.452905]
[1737309879714,0.05219977,105160.0,105150.0,0.452905]
[1737309880506,0.57403827,105170.0,105150.0,0.452905]
[1737309882015,0.21323827,105170.0,105150.0,0.452905]
[1737309882203,0.21323827,105170.0,105150.0,0.50510477]
[1737309882607,0.21323827,105170.0,105160.0,0.3608]
[1737309882917,0.21323827,105170.0,105150.0,0.50510477]
[1737309883219,0.21323827,105170.0,105150.0,0.40537874]
[1737309884014,0.21323827,105170.0,105160.0,0.047601]
[1737309884015,0.1610385,105170.0,105160.0,0.047601]
[1737309884214,0.1134425,105170.0,105160.0,0.408401]
[1737309884413,0.1134425,105180.0,105170.0,0.047596]
[1737309884620,0.1134425,105180.0,105170.0,0.408396]
[1737309884811,0.047588,105190.0,105170.0,0.41299977]
[1737309885119,0.09978777,105190.0,105180.0,0.408332]
[1737309887118,0.047588,105190.0,105180.0,0.408332]
[1737309888220,0.18981063,105200.0,105190.0,0.047587]
[1737309888921,0.30304499,105200.0,105190.0,0.047587]
[1737309890315,0.30304499,105200.0,105180.0,0.40839]
[1737309890519,0.05219977,105190.0,105180.0,0.40839]
[1737309892816,0.05219977,105190.0,105180.0,0.04759]
[1737309893211,0.05219977,105190.0,105180.0,0.40839]
[1737309893419,0.09978677,105190.0,105180.0,0.40839]
[1737309895220,0.24132972,105190.0,105180.0,0.40839]
[1737309896425,0.26963831,105190.0,105180.0,0.40839]
[1737309896628,0.26963831,105190.0,105170.0,0.41150184]
[1737309896817,0.09979177,105180.0,105170.0,0.41719784]
[1737309897117,0.14419177,105180.0,105170.0,0.41719784]
[1737309897817,0.50499177,105180.0,105170.0,0.05639784]
[1737309898620,0.67484331,105180.0,105170.0,0.05639784]
[1737309899319,0.047596,105170.0,105160.0,0.496899]
[1737309899518,0.09979577,105170.0,105160.0,0.49987537]
[1737309900525,0.09979577,105170.0,105160.0,0.49987539]
[1737309900726,0.09979577,105170.0,105160.0,0.45497539]
[1737309901121,0.09979577,105170.0,105160.0,0.46377442]
[1737309901425,0.26964731,105170.0,105160.0,0.05937442]
[1737309901922,0.26964731,105170.0,105160.0,0.05937456]
[1737309902326,0.09979577,105170.0,105160.0,0.05937456]
[1737309902527,0.46059577,105170.0,105160.0,0.00297653]
[1737309904415,0.047602,105160.0,105150.0,0.047603]
[1737309904624,0.46060177,105160.0,105140.0,0.46123953]
[1737309904920,0.14440477,105150.0,105140.0,0.46600249]
[1737309905425,0.14440477,105150.0,105140.0,0.047608]
[1737309905727,0.18960477,105150.0,105140.0,0.047608]
[1737309906325,0.55040477,105150.0,105140.0,0.047608]
[1737309906925,0.04761,105140.0,105130.0,0.45810985]
[1737309907116,0.09980977,105140.0,105130.0,0.42207348]
[1737309907327,0.09980977,105140.0,105130.0,0.06127348]
[1737309907530,0.09980977,105140.0,105130.0,0.05249475]
[1737309907832,0.09980977,105140.0,105130.0,0.04773112]
[1737309908726,0.24216483,105140.0,105130.0,0.04773112]
[1737309908924,0.60296483,105140.0,105130.0,0.04773112]
[1737309909125,0.60296483,105140.0,105120.0,0.04362686]
[1737309909325,0.09981377,105130.0,105120.0,0.09600999]
[1737309909517,0.047614,105130.0,105120.0,0.10493378]
[1737309909722,0.09981377,105130.0,105120.0,0.10493378]
[1737309910031,0.09981377,105130.0,105120.0,0.10016965]
[1737309910226,0.04768446,105130.0,105120.0,0.10016965]
[1737309910637,0.16144455,105130.0,105120.0,0.10016965]
[1737309911019,0.16144455,105130.0,105120.0,0.10010965]
[1737309911425,0.52224455,105130.0,105120.0,0.10010965]
[1737309911734,0.57444432,105130.0,105120.0,0.10010965]
[1737309912033,0.52224455,105130.0,105120.0,0.05790965]
[1737309912222,0.57444432,105130.0,105120.0,0.05790965]
[1737309913137,0.16144455,105130.0,105120.0,0.04812211]
[1737309913528,0.16144455,105130.0,105120.0,0.00892379]
[1737309913735,0.20923032,105130.0,105110.0,0.408421]
[1737309913932,0.047619,105120.0,105110.0,0.42033178]
[1737309914436,0.20464655,105130.0,105120.0,0.047619]
[1737309914632,0.25684632,105130.0,105120.0,0.047619]
[1737309914833,0.20923032,105130.0,105110.0,0.3608]
[1737309915027,0.047619,105120.0,105110.0,0.408422]
[1737309915232,0.047623,105110.0,105100.0,0.234426]
[1737309915429,0.0998979,105110.0,105100.0,0.147626]
[1737309916128,0.0998979,105110.0,105100.0,0.1]
[1737309916837,0.04769813,105110.0,105100.0,0.147628]
[1737309917431,7.513e-05,105110.0,105100.0,0.57551843]
[1737309917636,7.513e-05,105110.0,105100.0,0.58028302]
[1737309917830,7.513e-05,105110.0,105100.0,0.66428302]
[1737309919332,7.513e-05,105110.0,105100.0,0.62651781]
[1737309919540,7.513e-05,105110.0,105100.0,0.61877491]
[1737309919730,7.513e-05,105110.0,105100.0,0.62651514]
[1737309921438,0.11376009,105140.0,105130.0,0.047614]
[1737309921741,0.11376009,105140.0,105130.0,0.46359098]
[1737309922040,0.11376009,105140.0,105130.0,0.48026321]
[1737309922345,0.11376009,105140.0,105130.0,0.6107632]
[1737309922648,0.11380308,105140.0,105130.0,0.6107632]
[1737309922841,4.299e-05,105140.0,105130.0,0.6107632]
[1737309923241,4.299e-05,105140.0,105130.0,0.60599974]
[1737309923835,4.299e-05,105140.0,105130.0,0.60599928]
[1737309924345,4.299e-05,105140.0,105130.0,0.59409088]
[1737309925834,4.299e-05,105140.0,105130.0,0.59409105]
[1737309926146,4.299e-05,105140.0,105130.0,0.60600019]
[1737309926950,4.299e-05,105140.0,105130.0,0.59409105]
[1737309927748,4.299e-05,105140.0,105130.0,0.60599949]
[1737309927947,0.11380308,105140.0,105130.0,0.60599951]
[1737309930649,0.11380308,105140.0,105130.0,0.6148777]
[1737309931041,0.11380308,105140.0,105130.0,0.60296926]
[1737309931240,0.11380308,105140.0,105130.0,0.607733]
[1737309932242,0.11380308,105140.0,105130.0,0.61964194]
[1737309932441,0.11380308,105140.0,105130.0,0.607733]
[1737309934148,0.11380308,105140.0,105130.0,0.60773279]
[1737309936353,0.11380308,105140.0,105130.0,0.61964162]
[1737309938354,0.11380308,105140.0,105130.0,0.61487803]
[1737309939155,0.11380308,105140.0,105130.0,0.6029692]
[1737309939655,0.16141308,105140.0,105130.0,0.42026943]
[1737309939857,0.16141308,105140.0,105130.0,0.05946943]
[1737309940057,0.20551308,105140.0,105130.0,0.05946943]
[1737309940259,0.20551308,105140.0,105130.0,0.05649219]
[1737309940758,0.56631308,105140.0,105130.0,0.05649219]
[1737309940950,0.25771285,105140.0,105130.0,0.05649219]
[1737309941252,0.26257907,105140.0,105130.0,0.05649219]
[1737309941461,0.30687907,105140.0,105130.0,0.05649219]
[1737309941650,0.66767907,105140.0,105130.0,0.05649219]
[1737309941857,0.30687907,105140.0,105130.0,0.05649219]
[1737309942656,0.66767907,105140.0,105130.0,0.05649219]
[1737309942861,0.30687907,105140.0,105130.0,0.05649219]
[1737309943160,0.71987884,105140.0,105130.0,0.05649219]
[1737309944263,0.66767907,105140.0,105130.0,0.05649219]
[1737309945160,0.66767907,105140.0,105130.0,0.10869196]
[1737309945350,0.30687907,105140.0,105130.0,0.10869196]
[1737309945551,0.30687907,105140.0,105130.0,0.06107796]
[1737309945855,0.30687907,105140.0,105130.0,0.10869196]
[1737309946454,0.30687907,105140.0,105130.0,0.11166944]
[1737309947451,0.30687907,105140.0,105130.0,0.11643334]
[1737309948054,0.30687907,105140.0,105130.0,0.11166944]
[1737309948253,0.44942627,105140.0,105130.0,0.05946967]
[1737309948558,0.44942627,105140.0,105130.0,0.06342735]
[1737309948752,0.44942627,105140.0,105130.0,0.05866342]
[1737309949154,0.44942627,105140.0,105130.0,0.06342734]
[1737309949352,0.30687907,105140.0,105130.0,0.06342734]
[1737309949661,0.71987884,105140.0,105130.0,0.06342734]
[1737309949862,0.66767907,105140.0,105130.0,0.05568594]
[1737309950053,0.66767907,105140.0,105130.0,0.05866352]
[1737309950357,0.71987884,105140.0,105130.0,0.01104952]
[1737309950954,0.54905276,105140.0,105130.0,0.01104952]
[1737309952055,0.54905276,105140.0,105130.0,0.01104966]
[1737309953761,0.13605299,105140.0,105130.0,0.11086343]
[1737309954157,0.13605299,105140.0,105130.0,0.11086319]
[1737309954353,4.299e-05,105140.0,105130.0,0.47642697]
[1737309954567,4.299e-05,105140.0,105130.0,0.52072697]
[1737309954760,4.299e-05,105140.0,105130.0,0.60792697]
[1737309956067,0.21755404,105140.0,105130.0,0.60792672]
[1737309957162,0.19816013,105160.0,105130.0,0.75535049]
[1737309957363,0.22646872,105170.0,105160.0,0.047601]
[1737309957557,0.22646872,105170.0,105160.0,0.46834178]
[1737309957755,0.25477731,105180.0,105170.0,0.047596]
[1737309957963,0.25477731,105180.0,105170.0,0.46833678]
[1737309958166,0.25477731,105180.0,105170.0,0.46833327]
[1737309958554,0.25477731,105180.0,105170.0,0.48024221]
[1737309958765,0.14252937,105180.0,105170.0,0.48024221]
[1737309960054,0.14252937,105180.0,105170.0,0.48023694]
[1737309960255,0.16139025,105190.0,105180.0,0.047592]
[1737309960467,0.16139025,105190.0,105180.0,0.41136796]
[1737309961365,0.16139025,105190.0,105180.0,0.408392]
[1737309963170,0.16139025,105190.0,105180.0,0.46059177]
[1737309963771,0.047588,105190.0,105180.0,0.46059177]
[1737309964165,0.09978777,105190.0,105180.0,0.3608]
[1737309964463,0.047592,105180.0,105170.0,0.00878519]
[1737309964669,0.09979177,105180.0,105160.0,0.86371593]
[1737309964972,0.09979177,105180.0,105170.0,0.047596]
[1737309965169,0.047592,105180.0,105170.0,0.047596]
[1737309966867,0.047592,105180.0,105170.0,0.408396]
[1737309970273,0.047592,105180.0,105170.0,0.047596]
[1737309971775,0.408392,105180.0,105170.0,0.047596]
[1737309973878,0.52219425,105180.0,105170.0,0.047596]
[1737309978178,0.408392,105180.0,105170.0,0.047596]
[1737309979171,0.047596,105170.0,105160.0,0.00890515]
[1737309979373,0.047601,105160.0,105150.0,0.27382316]
[1737309979684,0.047601,105160.0,105150.0,0.32602293]
[1737309979872,0.0426,105170.0,105160.0,0.047601]
[1737309980179,0.127688,105190.0,105170.0,0.047596]
[1737309980373,0.127688,105190.0,105180.0,0.09979177]
[1737309980574,0.24149025,105190.0,105180.0,0.09979177]
[1737309980878,0.60229025,105190.0,105180.0,0.09979177]
[1737309982082,0.488488,105190.0,105180.0,0.09979177]
[1737309982475,0.127688,105190.0,105180.0,0.09979177]
[1737309982972,0.11380225,105200.0,105190.0,0.047587]
[1737309983173,0.14252937,105210.0,105200.0,0.047583]
[1737309983375,0.14252937,105210.0,105200.0,0.54268277]
[1737309983576,0.14252937,105210.0,105200.0,0.54565788]
[1737309983779,0.14252937,105210.0,105200.0,0.55756042]
[1737309984181,0.14252937,105210.0,105200.0,0.55756043]
[1737309985086,0.047574,105220.0,105210.0,0.047578]
[1737309986184,0.047574,105220.0,105210.0,0.09977777]
[1737309986387,0.408374,105220.0,105210.0,0.09977777]
[1737309987183,0.46057377,105220.0,105210.0,0.047578]
[1737309988085,0.408374,105220.0,105210.0,0.047578]
[1737309988586,0.46057377,105220.0,105210.0,0.047578]
[1737309990691,0.408374,105220.0,105210.0,0.047578]